bitfinex/quotes_ETHUSD_20250903
["timestamp","ask_amount","ask_price","bid_price","bid_amount"]
[1756886633455,1.2064,4323.5,4323.4,4.797]
[1756886633768,1.2064,4323.5,4323.4,0.908]
[1756886633973,1.2064,4323.5,4323.4,4.796]
[1756886634283,1.2064,4323.5,4323.4,7.1089944]
[1756886635687,1.2064,4323.5,4323.4,0.908]
[1756886635886,0.7765,4323.5,4323.4,4.794]
[1756886636055,0.7393,4323.5,4323.4,4.794]
[1756886636260,0.7393,4323.5,4323.4,7.1069944]
[1756886637226,0.001,4323.5,4323.4,7.1069944]
[1756886637364,0.001,4323.5,4323.4,7.2841944]
[1756886637778,0.001,4323.5,4323.4,7.1069944]
[1756886638175,0.7393,4323.5,4323.4,7.1069944]
[1756886639696,1.2325,4323.5,4323.4,7.1059944]
[1756886639876,0.7393,4323.5,4323.4,21.6059944]
[1756886640281,1.2325,4323.5,4323.4,21.6059944]
[1756886640672,0.7393,4323.5,4323.4,21.6059944]
[1756886641169,1.2325,4323.5,4323.4,19.293]
[1756886641369,1.2325,4323.5,4323.4,21.6059944]
[1756886641986,0.001,4323.5,4323.4,23.41483063]
[1756886642301,0.001,4323.5,4323.4,23.90673063]
[1756886642667,0.001,4323.5,4323.4,23.23763063]
[1756886642975,0.001,4323.5,4323.4,19.35263063]
[1756886643299,0.001,4323.5,4323.4,23.23963063]
[1756886643500,0.001,4323.5,4323.4,23.41683063]
[1756886646321,0.001,4323.5,4323.4,23.41583063]
[1756886648223,1.2295,4323.5,4323.4,17.7209944]
[1756886648400,1.2295,4323.5,4323.4,21.6049944]
[1756886648601,0.4475,4323.5,4323.4,21.6049944]
[1756886648795,0.001,4323.5,4323.4,21.6049944]
[1756886650113,1.2295,4323.5,4323.4,3.2209944]
[1756886650287,1.2295,4323.5,4323.4,4.794]
[1756886651316,1.2295,4323.5,4323.4,7.1069944]
[1756886651905,1.2295,4323.5,4323.4,4.794]
[1756886652076,1.2295,4323.5,4323.4,0.908]
[1756886652278,1.2295,4323.5,4323.4,4.794]
[1756886652480,1.2295,4323.5,4323.4,0.908]
[1756886652678,1.2295,4323.5,4323.4,4.676]
[1756886652883,1.47045,4323.5,4323.4,4.676]
[1756886653531,1.3455,4323.5,4323.4,4.676]
[1756886655322,1.2295,4323.5,4323.4,4.676]
[1756886655696,1.2295,4323.5,4323.4,6.9889944]
[1756886656222,0.001,4323.5,4323.4,6.9889944]
[1756886656386,0.0002,4323.5,4323.4,7.1661944]
[1756886656585,0.0002,4323.5,4323.4,22.73052111]
[1756886656827,0.4467,4323.5,4323.4,22.55332111]
[1756886657119,0.7355,4323.5,4323.4,21.6049944]
[1756886657331,0.0002,4323.5,4323.4,21.6049944]
[1756886657989,0.4467,4323.5,4323.4,21.6049944]
[1756886658387,0.0002,4323.5,4323.4,21.6049944]
[1756886659288,0.0002,4323.5,4323.4,21.7821944]
[1756886659488,0.0002,4323.5,4323.4,21.6049944]
[1756886659932,0.4467,4323.5,4323.4,7.1049944]
[1756886660250,0.4467,4323.5,4323.4,21.6049944]
[1756886660750,0.0002,4323.5,4323.4,21.6049944]
[1756886661320,0.7355,4323.5,4323.4,21.6049944]
[1756886662653,0.4467,4323.5,4323.4,21.6049944]
[1756886663352,0.7355,4323.5,4323.4,19.176]
[1756886664054,0.7355,4323.5,4323.4,21.4889944]
[1756886664632,0.4467,4323.5,4323.4,21.4889944]
[1756886664824,0.7355,4323.5,4323.4,21.4889944]
[1756886666559,0.7355,4323.5,4323.4,19.176]
[1756886666856,0.7355,4323.5,4323.4,21.4889944]
[1756886668247,1.2287,4323.5,4323.4,19.171]
[1756886668442,1.2287,4323.5,4323.4,4.671]
[1756886668756,1.2287,4323.5,4323.4,0.792]
[1756886668957,1.2287,4323.5,4323.4,4.671]
[1756886669134,1.2287,4323.5,4323.4,6.9839944]
[1756886670064,1.2287,4323.5,4323.4,4.671]
[1756886670366,1.2287,4323.5,4323.4,6.9839944]
[1756886670532,1.2287,4323.5,4323.4,3.1049944]
[1756886670733,1.2287,4323.5,4323.4,6.9829944]
[1756886671231,0.7355,4323.5,4323.4,3.1049944]
[1756886671460,0.7355,4323.5,4323.4,6.9819944]
[1756886672961,0.4467,4323.5,4323.4,6.9819944]
[1756886673470,0.4467,4323.5,4323.4,7.0979944]
[1756886674349,0.732,4323.5,4323.4,7.0979944]
[1756886674542,0.732,4323.5,4323.4,11.3379944]
[1756886674748,0.732,4323.5,4323.4,9.025]
[1756886674958,0.732,4323.5,4323.4,11.3379944]
[1756886676055,0.4467,4323.5,4323.4,11.3379944]
[1756886678594,0.0002,4323.5,4323.4,11.5151944]
[1756886678777,0.0002,4323.5,4323.4,12.248475]
[1756886678953,0.02,4323.8,4323.7,3.10483391]
[1756886679158,0.02,4323.8,4323.7,6.97883391]
[1756886679483,0.02,4323.8,4323.7,7.27203391]
[1756886679650,0.02,4323.8,4323.7,8.72785649]
[1756886680460,0.02,4323.8,4323.7,27.46785649]
[1756886681079,0.0192,4323.8,4323.7,27.46785649]
[1756886681978,0.0192,4323.8,4323.7,27.93605649]
[1756886682685,0.0192,4323.8,4323.7,27.46785649]
[1756886683055,0.0192,4323.8,4323.7,30.46785649]
[1756886683358,0.0192,4323.8,4323.7,30.93605649]
[1756886683875,0.0192,4323.8,4323.7,31.40385649]
[1756886687592,0.0192,4323.8,4323.7,30.93565649]
[1756886688384,0.0192,4323.8,4323.7,30.75845649]
[1756886688385,0.487,4323.8,4323.7,30.75845649]
[1756886688565,0.487,4323.8,4323.7,30.75545649]
[1756886689178,1.2334,4323.8,4323.7,20.77962258]
[1756886689489,1.2334,4323.8,4323.7,6.29883391]
[1756886689800,1.2334,4323.8,4323.7,7.09083391]
[1756886691106,0.3045,4323.8,4323.7,7.09083391]
[1756886691260,0.7723,4323.8,4323.7,7.09083391]
[1756886692180,0.7733,4323.8,4323.7,7.09083391]
[1756886693278,0.488,4323.8,4323.7,7.09083391]
[1756886693478,0.0202,4323.8,4323.7,7.09083391]
[1756886693989,0.0202,4323.8,4323.7,7.9736318]
[1756886694189,0.0202,4323.8,4323.7,8.1508318]
[1756886694356,0.0202,4323.8,4323.7,7.9736318]
[1756886694558,0.0202,4323.8,4323.7,12.6814318]
[1756886695173,0.0202,4323.8,4323.7,12.8586318]
[1756886696074,0.0202,4323.8,4323.7,12.6814318]
[1756886696774,0.7733,4323.8,4323.7,12.6814318]
[1756886696962,0.7733,4323.8,4323.7,27.1814318]
[1756886697372,0.488,4323.8,4323.7,27.1814318]
[1756886697775,1.2344,4323.8,4323.7,27.1814318]
[1756886697978,0.7733,4323.8,4323.7,27.1814318]
[1756886698198,0.7733,4323.8,4323.7,27.1804318]
[1756886698778,0.7733,4323.8,4323.7,26.7126318]
[1756886699298,1.2344,4323.8,4323.7,4.356]
[1756886699503,1.2344,4323.8,4323.7,8.225]
[1756886699884,1.2344,4323.8,4323.7,9.017]
[1756886700899,1.2344,4323.8,4323.7,8.901]
[1756886701674,0.7733,4323.8,4323.7,8.901]
[1756886701869,0.3055,4323.8,4323.7,11.21383391]
[1756886702070,0.7795,4323.8,4323.7,11.21383391]
[1756886702284,0.0202,4323.8,4323.7,11.21383391]
[1756886702471,0.0202,4323.8,4323.7,12.86011104]
[1756886703271,0.0202,4323.8,4323.7,27.36011104]
[1756886704117,0.329,4323.8,4323.7,27.18291104]
[1756886704323,0.803,4323.8,4323.7,27.18691104]
[1756886704474,0.4942,4323.8,4323.7,27.18691104]
[1756886704815,0.0202,4323.8,4323.7,27.18691104]
[1756886705018,0.4942,4323.8,4323.7,27.18691104]
[1756886705194,0.4942,4323.8,4323.7,23.31391104]
[1756886705395,0.8022,4323.8,4323.7,27.18591104]
[1756886705711,0.8022,4323.8,4323.7,12.68591104]
[1756886705876,1.272,4323.8,4323.7,11.33283391]
[1756886706082,1.272,4323.8,4323.7,4.356]
[1756886706390,1.272,4323.8,4323.7,9.021]
[1756886706900,1.272,4323.8,4323.7,8.905]
[1756886707290,7.27195967,4323.8,4323.6,0.004]
[1756886707480,7.38795967,4323.8,4323.7,3.874]
[1756886707678,7.38795967,4323.8,4323.7,4.666]
[1756886709517,9.70074009,4323.8,4323.7,4.666]
[1756886710891,9.70074009,4323.8,4323.7,0.792]
[1756886712113,12.70074009,4323.8,4323.7,0.792]
[1756886713407,5.31283391,4323.7,4323.6,0.004]
[1756886713616,9.18583391,4323.7,4323.6,0.004]
[1756886713806,10.43843391,4323.7,4323.6,0.004]
[1756886715832,10.43943391,4323.7,4323.6,0.004]
[1756886715987,16.43939358,4323.7,4323.6,0.004]
[1756886718209,16.43739358,4323.7,4323.6,0.004]
[1756886719804,22.43735325,4323.7,4323.6,0.004]
[1756886720010,16.43739358,4323.7,4323.6,0.004]
[1756886720537,17.31291374,4323.4,4323.3,0.004]
[1756886720734,22.93191374,4323.4,4323.3,0.004]
[1756886721029,24.18451374,4323.4,4323.3,0.004]
[1756886723328,11.4007944,4323.4,4323.3,0.004]
[1756886723496,18.18355407,4323.4,4323.3,0.004]
[1756886724395,14.31155407,4323.4,4323.3,0.004]
[1756886724822,16.93095407,4323.4,4323.3,0.004]
[1756886725098,10.9309944,4323.4,4323.3,0.9732]
[1756886725314,8.618,4323.4,4323.3,0.9732]
[1756886725519,6.989,4323.4,4323.3,0.9732]
[1756886725912,3.989,4323.4,4323.3,0.9732]
[1756886726432,2.4289944,4323.4,4323.3,0.9732]
[1756886727233,0.116,4323.4,4323.3,0.9732]
[1756886727633,2.4289944,4323.4,4323.3,0.9732]
[1756886727824,0.116,4323.4,4323.3,0.9732]
[1756886729210,2.4289944,4323.4,4323.3,0.9732]
[1756886729920,2.4281944,4323.4,4323.3,0.9732]
[1756886730729,0.1152,4323.4,4323.3,1.4441]
[1756886730929,0.1152,4323.4,4323.3,1.69971]
[1756886732320,0.1152,4323.4,4323.3,1.58891]
[1756886732722,0.1152,4323.4,4323.3,3.9019579]
[1756886733115,0.1152,4323.4,4323.3,1.58891]
[1756886733842,0.1152,4323.4,4323.3,3.9019579]
[1756886734139,0.1152,4323.4,4323.3,1.58891]
[1756886734540,0.0194,4323.8,4323.4,0.792]
[1756886734720,0.1354,4323.8,4323.6,3.10488568]
[1756886734936,0.1354,4323.8,4323.7,0.9692]
[1756886736834,0.1354,4323.8,4323.7,5.2092]
[1756886740037,0.1354,4323.8,4323.7,5.6801]
[1756886740238,0.1354,4323.8,4323.7,6.69326958]
[1756886740841,0.1354,4323.8,4323.7,6.22236958]
[1756886741041,0.1354,4323.8,4323.7,6.22043146]
[1756886741241,0.1354,4323.8,4323.7,5.20726188]
[1756886741473,0.1354,4323.8,4323.7,0.96726188]
[1756886741671,0.0194,4323.8,4323.7,3.85979579]
[1756886741968,0.0194,4323.8,4323.7,3.97579579]
[1756886742265,0.0194,4323.8,4323.7,5.46274834]
[1756886742468,0.0194,4323.8,4323.7,3.04111443]
[1756886743178,0.0194,4323.8,4323.7,5.35394834]
[1756886744786,0.0194,4323.8,4323.7,3.04111443]
[1756886744988,0.0194,4323.8,4323.7,2.57021443]
[1756886745874,0.0194,4323.8,4323.7,6.81021443]
[1756886746279,0.0194,4323.8,4323.7,10.75304834]
[1756886746756,0.0194,4323.8,4323.7,11.22394834]
[1756886746959,0.0194,4323.8,4323.7,10.75304834]
[1756886747979,0.0194,4323.8,4323.7,11.22394834]
[1756886748180,0.0194,4323.8,4323.7,11.33274834]
[1756886748850,0.0194,4323.8,4323.7,15.19974834]
[1756886753964,0.0194,4323.8,4323.7,15.09094834]
[1756886754485,0.0186,4323.8,4323.7,15.19974834]
[1756886755192,0.0186,4323.8,4323.7,15.09094834]
[1756886755398,0.02,4324.8,4323.7,10.73891443]
[1756886755691,0.02,4324.8,4324.7,3.10429911]
[1756886755894,0.02,4324.8,4324.7,8.61529911]
[1756886756074,0.02,4324.8,4324.7,8.78939911]
[1756886756265,0.02,4324.8,4324.7,8.61529911]
[1756886756465,0.8055,4324.8,4324.7,8.61529911]
[1756886757114,0.8055,4324.8,4324.7,5.511]
[1756886757115,1.2894,4324.8,4324.7,5.511]
[1756886757778,1.2894,4324.8,4324.7,6.303]
[1756886758164,1.2894,4324.8,4324.7,8.61529911]
[1756886758360,1.2894,4324.8,4324.7,6.303]
[1756886759088,1.2894,4324.8,4324.7,8.61529911]
[1756886759595,0.8055,4324.8,4324.7,8.61529911]
[1756886760178,0.02,4324.8,4324.7,11.05730708]
[1756886760368,0.02,4324.8,4324.7,7.00220708]
[1756886760574,0.7747,4324.8,4324.7,10.88220708]
[1756886760998,0.4814,4324.8,4324.7,10.88220708]
[1756886761224,0.4814,4324.8,4324.7,10.88320708]
[1756886761403,0.02,4324.8,4324.7,11.05730708]
[1756886762204,0.02,4324.8,4324.7,10.88320708]
[1756886763093,0.02,4324.8,4324.7,8.61529911]
[1756886763402,0.02,4324.8,4324.7,23.11529911]
[1756886764510,0.4814,4324.8,4324.7,23.11529911]
[1756886764873,0.7747,4324.8,4324.7,23.11529911]
[1756886765508,0.7747,4324.8,4324.7,23.23129911]
[1756886766411,0.4814,4324.8,4324.7,10.99920708]
[1756886766590,0.02,4324.8,4324.7,8.73129911]
[1756886766777,0.02,4324.8,4324.7,8.72829911]
[1756886766778,1.2435,4324.8,4324.7,8.72829911]
[1756886766971,1.2435,4324.8,4324.7,23.22829911]
[1756886767810,0.7747,4324.8,4324.7,23.22829911]
[1756886769477,0.7747,4324.8,4324.7,27.46829911]
[1756886770240,1.2435,4324.8,4324.7,25.155]
[1756886770409,1.2435,4324.8,4324.7,10.655]
[1756886770912,0.02,4324.8,4324.7,14.49527772]
[1756886771412,0.4814,4324.8,4324.7,14.49527772]
[1756886771708,0.4824,4324.8,4324.7,14.49527772]
[1756886771923,0.021,4324.8,4324.7,14.49527772]
[1756886772276,0.3143,4324.8,4324.7,14.49527772]
[1756886772505,0.7757,4324.8,4324.7,14.49427772]
[1756886772698,0.021,4324.8,4324.7,14.49427772]
[1756886773427,0.3143,4324.8,4324.7,14.49427772]
[1756886773745,0.7757,4324.8,4324.7,14.49427772]
[1756886774844,1.2445,4324.8,4324.7,6.778]
[1756886775023,1.2445,4324.8,4324.7,10.655]
[1756886775403,0.4824,4324.8,4324.7,12.96729911]
[1756886775902,0.7757,4324.8,4324.7,12.96729911]
[1756886776934,5.31166442,4325.9,4324.8,3.1042312]
[1756886777234,0.1152,4325.3,4325.0,0.792]
[1756886777403,0.1152,4325.3,4325.2,0.792]
[1756886777824,0.4085,4325.3,4325.2,0.792]
[1756886778835,0.3577,4325.3,4325.2,0.792]
[1756886779038,1.2879,4325.3,4325.2,0.792]
[1756886779440,2.31213872,4325.0,4324.9,4.24]
[1756886779615,2.31224565,4324.8,4324.7,0.116]
[1756886779814,2.3126408,4324.1,4323.8,1.655]
[1756886780020,0.9302,4324.0,4323.9,3.88]
[1756886780439,3.53617345,4324.0,4323.9,4.672]
[1756886780750,3.53617345,4324.0,4323.9,3.88]
[1756886780918,3.53617345,4324.0,4323.8,1.655]
[1756886781124,2.60597345,4324.0,4323.9,3.88]
[1756886781325,2.72197345,4324.0,4323.9,3.88]
[1756886781647,2.72197345,4324.0,4323.9,4.672]
[1756886781940,3.65217345,4324.0,4323.9,4.672]
[1756886783143,1.3395,4324.0,4323.9,4.672]
[1756886784851,0.8707,4324.0,4323.9,4.672]
[1756886785846,0.69520643,4324.6,4323.9,4.672]
[1756886785847,2.31235148,4324.7,4324.0,0.792]
[1756886786047,0.116,4324.4,4324.2,0.792]
[1756886786257,0.116,4324.4,4324.3,4.671]
[1756886786755,0.116,4324.4,4324.3,4.9767]
[1756886787416,1.15654522,4325.2,4324.3,8.5296445]
[1756886787627,0.116,4324.8,4324.4,3.10444577]
[1756886787855,0.116,4324.8,4324.6,0.792]
[1756886788054,0.116,4324.8,4324.7,4.9777]
[1756886788231,0.066,4324.8,4324.7,4.9777]
[1756886788653,7.3312097,4325.5,4324.8,0.792]
[1756886788654,0.116,4325.1,4324.8,0.792]
[1756886788859,0.116,4325.1,4325.0,1.0977]
[1756886794462,5.99733782,4325.2,4325.0,1.0977]
[1756886794633,5.99733782,4325.2,4325.1,4.669]
[1756886795158,0.1152,4325.3,4325.2,0.792]
[1756886795461,6.11253782,4325.3,4325.2,0.792]
[1756886795662,6.40093782,4325.3,4325.2,0.792]
[1756886796174,9.17511617,4325.3,4325.2,0.792]
[1756886796333,9.66861617,4325.3,4325.2,0.792]
[1756886797027,7.35663782,4325.3,4325.2,0.792]
[1756886797455,9.66861617,4325.3,4325.2,0.792]
[1756886797644,7.35663782,4325.3,4325.2,0.792]
[1756886797826,9.66861617,4325.3,4325.2,0.792]
[1756886798030,7.35663782,4325.3,4324.7,0.792]
[1756886798262,5.99733782,4324.8,4324.7,0.792]
[1756886798465,5.99733782,4324.8,4324.7,4.668]
[1756886798643,6.28573782,4324.8,4324.7,4.668]
[1756886799039,6.74793782,4324.8,4324.7,4.668]
[1756886799439,0.7506,4324.8,4324.7,4.668]
[1756886799651,6.74793782,4324.8,4324.7,4.668]
[1756886800945,6.28573782,4324.8,4324.7,4.668]
[1756886801843,0.116,4325.0,4324.7,4.9789]
[1756886802163,6.11333782,4325.0,4324.9,0.792]
[1756886802364,6.11333782,4325.0,4324.9,4.667]
[1756886802534,0.116,4325.0,4324.9,5.9126]
[1756886803065,0.001,4325.6,4325.2,0.792]
[1756886803267,0.001,4325.6,4325.4,0.792]
[1756886803476,0.0002,4325.6,4325.5,4.9789]
[1756886804138,5.99753782,4325.6,4325.5,4.9789]
[1756886806353,5.99753782,4325.6,4325.5,4.668]
[1756886807066,10.8991316,4325.6,4325.1,3.874]
[1756886807243,2.31208526,4325.1,4325.0,3.874]
[1756886807446,1.3601,4325.1,4324.6,1.63]
[1756886807638,0.116,4324.8,4324.7,3.876]
[1756886807840,1.3601,4324.8,4324.7,4.668]
[1756886808169,7.35743782,4324.8,4324.7,4.668]
[1756886808372,6.89523782,4324.8,4324.7,4.668]
[1756886808573,6.40173782,4324.8,4324.7,4.668]
[1756886808941,6.86393782,4324.8,4324.7,4.668]
[1756886809966,9.66968347,4324.8,4324.7,4.668]
[1756886810484,2.31243972,4324.5,4323.9,5.874]
[1756886810668,5.99733782,4324.4,4323.9,5.874]
[1756886810873,6.40173782,4324.4,4324.3,4.671]
[1756886811684,6.11333782,4324.4,4324.3,4.671]
[1756886812253,6.40173782,4324.4,4324.3,4.671]
[1756886812984,8.71419735,4324.4,4324.3,4.671]
[1756886813286,6.11333782,4324.4,4324.3,4.671]
[1756886813796,3.17905953,4324.4,4324.3,0.796]
[1756886813985,7.35743782,4324.4,4324.3,4.671]
[1756886814177,9.17639735,4324.4,4324.3,4.671]
[1756886814665,9.17639735,4324.4,4324.3,0.796]
[1756886814870,9.17639735,4324.4,4324.3,4.67]
[1756886815383,8.71419735,4324.4,4324.3,4.67]
[1756886815553,9.17639735,4324.4,4324.3,4.67]
[1756886816369,6.86393782,4324.4,4324.3,4.67]
[1756886816568,6.40173782,4324.4,4324.3,4.67]
[1756886816965,6.11333782,4324.4,4324.3,4.9809]
[1756886818799,6.11333782,4324.4,4324.3,4.67]
[1756886819760,6.11333782,4324.4,4324.3,4.9799]
[1756886820256,0.116,4324.4,4324.3,4.9799]
[1756886820464,0.116,4324.4,4324.3,5.8939]
[1756886820892,0.116,4324.4,4324.3,0.796]
[1756886820893,9.68819735,4324.4,4324.3,0.796]
[1756886821091,9.68819735,4324.4,4324.3,0.004]
[1756886821393,3.69085953,4324.4,4324.3,0.004]
[1756886821595,10.56285953,4324.4,4324.3,0.004]
[1756886823293,10.56285953,4324.4,4323.9,0.004]
[1756886823294,2.31267345,4324.0,4323.9,0.004]
[1756886823497,15.32691968,4324.0,4323.9,0.004]
[1756886823681,15.32691968,4324.0,4323.8,0.026]
[1756886823682,5.31272693,4323.9,4323.8,0.026]
[1756886824090,6.57512693,4323.9,4323.8,0.026]
[1756886827968,12.57166475,4323.9,4323.8,0.026]
[1756886828281,6.57432693,4323.9,4323.8,0.026]
[1756886828825,11.42606475,4323.9,4323.8,1.1279]
[1756886829505,11.71996475,4323.9,4323.8,0.818]
[1756886829799,11.42606475,4323.9,4323.8,0.818]
[1756886829997,11.42606475,4323.9,4323.8,1.1279]
[1756886830213,9.11333782,4323.9,4323.8,1.1279]
[1756886830772,11.42606475,4323.9,4323.8,1.1279]
[1756886831400,12.21876475,4323.9,4323.8,0.026]
[1756886831698,12.57246475,4323.9,4323.8,0.026]
[1756886834106,12.57246475,4323.9,4323.6,0.004]
[1756886834107,3.0,4323.8,4323.6,0.004]
[1756886834308,3.0,4323.8,4323.3,0.004]
[1756886834309,2.3129409,4323.5,4323.3,0.004]
[1756886834498,17.30772354,4323.3,4323.2,0.004]
[1756886834981,18.57012354,4323.3,4323.2,0.004]
[1756886839391,18.66286631,4323.3,4323.2,0.004]
[1756886841524,18.77886631,4323.3,4323.2,0.004]
[1756886846622,17.81036631,4323.3,4323.2,0.004]
[1756886846926,18.28006631,4323.3,4323.2,0.004]
[1756886847122,18.77886631,4323.3,4323.2,0.004]
[1756886847506,22.65186631,4323.3,4323.2,0.004]
[1756886850739,22.65286631,4323.3,4323.2,0.004]
[1756886851441,10.65819067,4323.3,4323.2,0.004]
[1756886851634,17.99405472,4323.3,4323.2,0.004]
[1756886852214,17.97275472,4323.3,4323.2,0.004]
[1756886852414,17.97195472,4323.3,4323.2,0.004]
[1756886852943,16.73085472,4323.3,4323.2,0.004]
[1756886853139,17.01645472,4323.3,4323.2,0.004]
[1756886853645,16.72785472,4323.3,4323.2,0.004]
[1756886853940,17.01345472,4323.3,4323.2,0.004]
[1756886854721,2.52199067,4323.3,4323.2,1.9932]
[1756886854921,0.117,4323.3,4323.2,1.9932]
[1756886858532,0.001,4323.3,4323.2,1.9932]
[1756886858867,0.001,4323.3,4323.2,4.7377356]
[1756886859952,0.001,4323.3,4323.2,2.4246342]
[1756886860116,0.001,4323.3,4323.2,1.9932]
[1756886860622,0.117,4323.3,4323.2,1.9932]
[1756886861423,0.117,4323.3,4323.2,4.3063014]
[1756886861622,0.001,4323.3,4323.2,4.3063014]
[1756886870036,0.001,4323.3,4323.2,8.1763014]
[1756886870345,0.001,4323.3,4323.2,9.38905117]
[1756886870863,0.001,4323.3,4323.2,6.63944977]
[1756886871164,0.001,4323.3,4323.2,6.18684977]
[1756886871661,0.001,4323.3,4323.2,9.38905117]
[1756886871963,0.001,4323.8,4323.2,9.38905117]
[1756886871964,0.001,4323.8,4323.7,3.10483391]
[1756886872167,0.001,4323.8,4323.7,9.97483391]
[1756886872350,0.001,4323.8,4323.7,10.28293391]
[1756886872556,0.001,4323.8,4323.7,11.17203391]
[1756886872955,0.001,4323.8,4323.7,11.28803391]
[1756886873152,0.001,4323.8,4323.7,12.65739658]
[1756886873354,0.001,4323.8,4323.7,5.78739658]
[1756886873541,0.001,4323.8,4323.7,5.0881]
[1756886873741,0.001,4323.8,4323.7,8.29003391]
[1756886874150,0.001,4323.8,4323.7,1.2161]
[1756886874467,0.001,4323.8,4323.7,5.0891]
[1756886874963,0.001,4323.8,4323.7,7.40193391]
[1756886875151,0.001,4323.8,4323.7,8.1421273]
[1756886875351,0.001,4323.8,4323.7,5.82929339]
[1756886875573,0.001,4323.8,4323.7,5.0891]
[1756886875755,0.2866,4323.8,4323.7,0.908]
[1756886875956,0.2866,4323.8,4323.7,0.792]
[1756886876169,0.735,4323.8,4323.7,8.903]
[1756886876375,0.2866,4323.8,4323.7,8.903]
[1756886876742,0.7342,4323.8,4323.7,8.904]
[1756886877072,0.2858,4323.8,4323.7,8.904]
[1756886877449,0.0002,4323.8,4323.7,8.904]
[1756886877649,0.0002,4323.8,4323.7,11.52493391]
[1756886879871,0.0002,4323.8,4323.7,12.46263391]
[1756886880044,0.0002,4323.8,4323.7,13.01408851]
[1756886880365,0.2867,4323.8,4323.7,10.3911546]
[1756886880572,0.0002,4323.8,4323.7,11.53093391]
[1756886880776,0.0002,4323.8,4323.7,9.2181]
[1756886881157,0.0002,4323.8,4323.7,11.53093391]
[1756886881339,0.0002,4323.8,4323.7,11.21483391]
[1756886881541,0.2867,4323.8,4323.7,5.031]
[1756886881749,0.2867,4323.8,4323.7,8.902]
[1756886884378,0.0002,4323.8,4323.7,11.53093391]
[1756886884559,0.0002,4323.8,4323.7,11.86205816]
[1756886886432,0.0002,4323.8,4323.7,12.35565816]
[1756886886564,0.0002,4323.8,4323.7,12.79975816]
[1756886887514,0.0002,4323.8,4323.7,5.36212425]
[1756886887664,0.2867,4323.8,4323.7,5.031]
[1756886887972,0.0002,4323.8,4323.7,11.21283391]
[1756886888363,0.0002,4323.8,4323.7,12.46663391]
[1756886888972,0.0002,4323.8,4323.7,11.52893391]
[1756886889922,0.0002,4323.8,4323.7,12.46663391]
[1756886890215,0.0002,4323.8,4323.7,17.07219022]
[1756886890418,0.001,4324.2,4324.0,0.792]
[1756886890568,0.001,4324.2,4324.1,5.0308]
[1756886890773,0.001,4324.2,4324.1,28.71221996]
[1756886891184,0.001,4324.2,4324.1,23.99819096]
[1756886891402,0.001,4324.2,4324.1,30.13509893]
[1756886892170,0.001,4324.2,4324.1,30.98012793]
[1756886892374,0.2875,4324.2,4324.1,15.22632793]
[1756886892681,0.001,4324.2,4324.1,15.22632793]
[1756886892886,0.001,4324.2,4324.1,15.54242793]
[1756886893097,0.001,4324.2,4324.1,16.48112793]
[1756886893514,0.001,4324.2,4324.1,15.54342793]
[1756886893719,0.001,4324.2,4324.1,12.95941996]
[1756886894216,0.001,4324.2,4324.1,13.27551996]
[1756886894419,0.001,4324.2,4324.1,9.41431996]
[1756886894618,0.001,4324.2,4324.1,9.97441996]
[1756886896722,0.001,4324.2,4324.1,4.85061996]
[1756886897021,0.001,4324.2,4324.1,9.03471996]
[1756886897335,0.001,4324.2,4324.1,9.97241996]
[1756886897542,0.001,4324.2,4324.1,24.47241996]
[1756886898534,0.001,4324.2,4324.1,24.56509182]
[1756886899409,0.001,4324.2,4324.1,24.12099182]
[1756886899597,0.001,4324.2,4324.1,8.71861996]
[1756886899999,0.001,4324.2,4324.1,9.03471996]
[1756886900326,0.001,4324.2,4324.1,11.30262793]
[1756886900521,0.001,4324.2,4324.1,11.74672793]
[1756886900826,0.001,4324.2,4324.1,12.12432793]
[1756886900989,0.001,4324.2,4324.1,15.24032793]
[1756886901194,0.001,4324.2,4324.1,15.33299421]
[1756886901402,0.001,4324.3,4324.2,6.10456648]
[1756886901626,0.001,4324.3,4324.2,9.31017445]
[1756886901830,0.001,4324.3,4324.2,9.62627445]
[1756886902033,0.001,4324.3,4324.2,9.8349345]
[1756886903530,0.001,4324.3,4324.2,9.3908345]
[1756886903907,0.001,4324.3,4324.2,24.3349345]
[1756886905122,0.001,4324.3,4324.2,24.24227445]
[1756886911537,0.001,4324.7,4324.6,3.10435258]
[1756886911746,0.001,4324.7,4324.6,6.97235258]
[1756886911926,0.001,4324.7,4324.6,12.2556308]
[1756886912237,0.001,4324.7,4324.6,27.0487308]
[1756886915213,0.001,4324.7,4324.6,12.5487308]
[1756886915642,0.001,4324.7,4324.6,27.0487308]
[1756886916128,0.001,4324.7,4324.6,27.5043308]
[1756886916335,0.001,4324.7,4324.6,27.9358308]
[1756886916633,0.3163,4324.7,4324.6,22.8876308]
[1756886916835,0.001,4324.7,4324.6,27.0477308]
[1756886917748,0.001,4324.7,4324.6,27.9348308]
[1756886918046,0.001,4324.7,4324.6,27.5033308]
[1756886918734,0.001,4324.7,4324.6,13.0033308]
[1756886919245,0.001,4324.7,4324.6,27.5033308]
[1756886919945,0.001,4324.7,4324.6,27.0477308]
[1756886921147,0.001,4324.7,4324.6,33.93078993]
[1756886921533,0.001,4325.2,4325.1,3.10408526]
[1756886921722,0.001,4325.2,4325.1,9.25771004]
[1756886921915,0.3163,4325.2,4325.1,9.25771004]
[1756886922316,0.001,4325.2,4325.1,9.25771004]
[1756886923513,0.001,4325.2,4325.1,9.55081004]
[1756886923715,0.001,4325.2,4325.1,10.00641004]